[Event "Germany Countries-chT Youth 2022"]
[Site "Wiesbaden"]
[Date "2022.10.01"]
[Round "1"]
[White "Basovskiy, Jana"]
[Black "Henninger, Claire"]
[Result "1-0"]
[ECO "B12"]
[WhiteElo "1858"]
[BlackElo "1526"]
[Annotator "NA RC COMBH"]
[PlyCount "97"]
[EventDate "2022.09.28"]
[EventType "team-tourn"]
[EventRounds "7"]
[EventCountry "GER"]
[SourceTitle "playchess.com"]
[Source "ChessBase"]
[SourceQuality "1"]
[TimeControl "40/5400+30:1800+30"]

1. e4 {[%emt 0:00:01]} c6 {[%emt 0:00:03]} 2. d4 {[%emt 0:00:13]} d5 {[%emt 0:00:05]} 3. e5 {[%emt 0:00:03]} Bf5 {[%emt 0:00:15]} 4. h4 {[%emt 0:00:07]} h5 {[%emt 0:00:41]} 5. Bg5 {[%emt 0:07:09]} Qb6 {[%emt 0:06:48]} 6. Bd3 $17 {[%emt 0:00:24]} (6. b3 $1 $11) 6... Qxb2 {[%emt 0:22:15]} 7. Bxf5 {[%emt 0:11:56]} Qxa1 {[%emt 0:02:48]} 8. e6 {[%emt 0:00:19]} Nh6 {[%emt 0:06:15]} 9. exf7+ {[%emt 0:19:01]} Nxf7 {[%emt 0:02:58]} 10. Nf3 {[%emt 0:08:45]} Nd7 {[%emt 0:05:40]} 11. Bg6 {[%emt 0:01:37]} e6 {[%emt 0:05:59]} 12. O-O {[%emt 0:01:32]} Be7 {[%emt 0:03:27]} 13. Qe2 {[%emt 0:00:55]} Nf8 {[%emt 0:17:11]} 14. Ne5 {[%emt 0:10:05]} Nxg6 {[%emt 0:04:25]} 15. Nxg6 {[%emt 0:00:21]} Nxg5 {[%emt 0:05:26]} 16. hxg5 {[%emt 0:02:43]} Kd7 {[%emt 0:05:04]} 17. Nxh8 {[%emt 0:07:41]} Rxh8 {[%emt 0:00:59]} 18. Re1 {[%emt 0:00:03]} Bb4 {[%emt 0:03:49]} 19. Qxe6+ {[%emt 0:00:39]} Kc7 {[%emt 0:00:11]} 20. Qe5+ {[%emt 0:00:58]} Kb6 {[%emt 0:00:26]} 21. c3 {[%emt 0:06:01]} Bxc3 {[%emt 0:00:58]} 22. Nxc3 {[%emt 0:01:34]} Qxc3 {[%emt 0:00:15]} 23. Rb1+ {[%emt 0:00:33]} Ka5 {[%emt 0:03:06]} 24. Qc7+ {[%emt 0:02:11]} Ka4 {[%emt 0:00:40]} 25. Qxb7 {[%emt 0:00:06]} a5 {[%emt 0:01:31]} 26. Qxg7 {[%emt 0:04:17]} Re8 {[%emt 0:00:42]} 27. Qf6 {[%emt 0:00:38]} Qc2 {[%emt 0:01:13]} 28. Rf1 {[%emt 0:00:36]} Rg8 {[%emt 0:00:32]} 29. Re1 {[%emt 0:00:41]} h4 {[%emt 0:00:16]} 30. Re3 {[%emt 0:02:22]} Rg6 {[%emt 0:00:18]} 31. Qe7 {[%emt 0:00:28]} Qc1+ {[%emt 0:00:23]} 32. Kh2 {[%emt 0:00:19]} Qd2 {[%emt 0:00:42]} 33. Ra3+ {[%emt 0:06:29]} Kb5 {[%emt 0:00:28]} 34. Qb7+ {[%emt 0:00:46]} Kc4 {[%emt 0:00:34]} 35. Ra4+ {[%emt 0:01:13]} Kd3 {[%emt 0:00:29]} 36. Qb1+ {[%emt 0:01:25]} Qc2 {[%emt 0:00:50]} 37. Ra3+ {[%emt 0:00:46]} Kd2 {[%emt 0:00:10]} 38. Qf1 {[%emt 0:01:26]} Re6 {[%emt 0:00:57]} 39. Qa6 {[%emt 0:00:48]} Re1 {[%emt 0:00:37]} 40. Qxa5+ {[%emt 0:00:21]} Kd1 {[%emt 0:00:23]} 41. Qa4 {[%emt 0:05:47]} Re4 {[%emt 0:09:58]} 42. Rd3+ {[%emt 0:03:42]} Kc1 {[%emt 0:00:18]} 43. Qa3+ {[%emt 0:00:27]} Kb1 {[%emt 0:00:47]} 44. Rb3+ {[%emt 0:00:36]} Ka1 {[%emt 0:00:22]} 45. Rc3 {[%emt 0:00:11]} Qb2 {[%emt 0:03:03]} 46. Rc1+ {[%emt 0:00:14]} Qxc1 {[%emt 0:00:31]} 47. Qxc1+ {[%emt 0:00:05]} Kxa2 {[%emt 0:00:05]} 48. Qxc6 {[%emt 0:00:21]} Rxd4 {[%emt 0:00:19]} 49. Qc2+ {[%emt 0:00:15]} 1-0

[Event "Germany Countries-chT Youth 2022"]
[Site "Wiesbaden"]
[Date "2022.10.01"]
[Round "1"]
[White "Guo, Philipp Ziming"]
[Black "Modali, Nikhilamrutha"]
[Result "1-0"]
[ECO "B46"]
[WhiteElo "1851"]
[BlackElo "1355"]
[Annotator "NA RC COMBH"]
[PlyCount "95"]
[EventDate "2022.09.28"]
[EventType "team-tourn"]
[EventRounds "7"]
[EventCountry "GER"]
[SourceTitle "playchess.com"]
[Source "ChessBase"]
[SourceQuality "1"]
[TimeControl "40/5400+30:1800+30"]

1. e4 {[%emt 0:00:05]} c5 {[%emt 0:00:04]} 2. Nf3 {[%emt 0:00:14]} e6 {[%emt 0:00:01]} 3. d4 {[%emt 0:00:13]} cxd4 {[%emt 0:00:05]} 4. Nxd4 {[%emt 0:00:08]} Nc6 {[%emt 0:00:05]} 5. Nc3 {[%emt 0:00:22]} a6 {[%emt 0:00:12]} 6. Nxc6 {[%emt 0:00:14]} bxc6 {[%emt 0:00:07]} 7. Bd3 {[%emt 0:00:34]} d5 {[%emt 0:00:23]} 8. O-O {[%emt 0:01:03]} Nf6 {[%emt 0:01:50]} 9. Re1 {[%emt 0:00:25]} Be7 {[%emt 0:00:55]} 10. e5 {[%emt 0:00:35]} Nd7 {[%emt 0:01:16]} 11. Qg4 {[%emt 0:00:18]} g6 {[%emt 0:00:14]} 12. Bh6 {[%emt 0:00:35]} Qb6 {[%emt 0:01:10]} 13. Rab1 {[%emt 0:03:41]} Qb4 {[%emt 0:06:00]} 14. Qh3 {[%emt 0:02:24]} Qh4 {[%emt 0:05:44]} 15. Qxh4 {[%emt 0:04:04]} Bxh4 {[%emt 0:00:10]} 16. Na4 {[%emt 0:04:14]} a5 {[%emt 0:05:58]} 17. Rbc1 {[%emt 0:14:15]} Ba6 {[%emt 0:10:49]} 18. Bxa6 {[%emt 0:06:47]} Rxa6 {[%emt 0:00:14]} 19. c4 {[%emt 0:01:35]} Ra8 {[%emt 0:19:34]} 20. cxd5 {[%emt 0:15:16]} cxd5 {[%emt 0:00:43]} 21. Rc6 {[%emt 0:02:07]} Be7 {[%emt 0:10:07]} 22. Rec1 {[%emt 0:15:20]} Bf8 {[%emt 0:13:58]} 23. Rc8+ {[%emt 0:03:09]} Rxc8 {[%emt 0:00:05]} 24. Rxc8+ {[%emt 0:00:05]} Ke7 {[%emt 0:00:12]} 25. Bg5+ {[%emt 0:00:28]} f6 {[%emt 0:02:11]} 26. exf6+ {[%emt 0:00:24]} Kd6 {[%emt 0:02:46]} 27. Rd8 {[%emt 0:08:30]} Kc7 {[%emt 0:02:36]} 28. Ra8 {[%emt 0:03:24]} h6 {[%emt 0:03:27]} 29. Bh4 {[%emt 0:00:17]} Kb7 {[%emt 0:02:36]} 30. Rxa5 {[%emt 0:01:59]} g5 {[%emt 0:01:06]} 31. Bg3 {[%emt 0:00:08]} Nxf6 {[%emt 0:00:51]} 32. Be5 {[%emt 0:00:52]} Be7 {[%emt 0:00:47]} 33. Nc5+ {[%emt 0:03:41]} Bxc5 {[%emt 0:06:07]} 34. Rxc5 {[%emt 0:00:05]} Rf8 {[%emt 0:00:23]} 35. f3 {[%emt 0:00:42]} Rf7 {[%emt 0:01:33]} 36. a4 {[%emt 0:01:13]} Nd7 {[%emt 0:00:23]} 37. Rc7+ {[%emt 0:00:58]} Kb6 {[%emt 0:00:04]} 38. Bd6 {[%emt 0:00:32]} Rh7 {[%emt 0:02:02]} 39. b4 {[%emt 0:00:35]} Nf6 {[%emt 0:00:49]} 40. Rxh7 {[%emt 0:00:59]} Nxh7 {[%emt 0:00:02]} 41. Be7 {[%emt 0:30:13]} e5 {[%emt 0:04:00]} 42. Kf2 {[%emt 0:00:00]} g4 {[%emt 0:03:41]} 43. fxg4 {[%emt 0:00:00]} Ng5 {[%emt 0:00:04]} 44. Bxg5 {[%emt 0:00:00]} hxg5 {[%emt 0:00:05]} 45. h4 {[%emt 0:00:00]} d4 {[%emt 0:01:12]} 46. Kf3 {[%emt 0:00:00]} d3 {[%emt 0:00:36]} 47. Ke3 {[%emt 0:00:00]} e4 {[%emt 0:00:19]} 48. hxg5 {[%emt 0:00:00]} 1-0

[Event "Germany Countries-chT Youth 2022"]
[Site "Wiesbaden"]
[Date "2022.10.01"]
[Round "1"]
[White "Kieselbach, Jannik"]
[Black "Aniol, Nico"]
[Result "0-1"]
[ECO "B33"]
[WhiteElo "1848"]
[BlackElo "1541"]
[Annotator "NA RC COMBH"]
[PlyCount "74"]
[EventDate "2022.09.28"]
[EventType "team-tourn"]
[EventRounds "7"]
[EventCountry "GER"]
[SourceTitle "playchess.com"]
[Source "ChessBase"]
[SourceQuality "1"]
[TimeControl "40/5400+30:1800+30"]

1. e4 {[%emt 0:00:03]} c5 {[%emt 0:00:18]} 2. Nf3 {[%emt 0:00:06]} Nc6 {[%emt 0:00:12]} 3. d4 {[%emt 0:00:06]} cxd4 {[%emt 0:00:21]} 4. Nxd4 {[%emt 0:00:06]} Nf6 {[%emt 0:00:09]} 5. Nc3 {[%emt 0:00:11]} e5 {[%emt 0:00:12]} 6. Ndb5 {[%emt 0:00:07]} d6 {[%emt 0:00:10]} 7. Bg5 {[%emt 0:00:10]} a6 {[%emt 0:00:12]} 8. Na3 {[%emt 0:00:05]} b5 {[%emt 0:00:07]} 9. Nd5 {[%emt 0:00:06]} Be7 {[%emt 0:00:05]} 10. Bxf6 {[%emt 0:00:07]} Bxf6 {[%emt 0:00:06]} 11. c3 {[%emt 0:00:08]} Bg5 {[%emt 0:00:20]} 12. Nc2 {[%emt 0:00:13]} O-O {[%emt 0:00:38]} 13. a4 {[%emt 0:00:05]} bxa4 {[%emt 0:00:21]} 14. Rxa4 {[%emt 0:00:08]} a5 {[%emt 0:00:02]} 15. Bc4 {[%emt 0:00:26]} Rb8 {[%emt 0:00:05]} 16. b3 {[%emt 0:03:53]} Kh8 {[%emt 0:00:07]} 17. O-O {[%emt 0:02:00]} f5 {[%emt 0:04:09]} 18. exf5 {[%emt 0:12:32]} Bxf5 {[%emt 0:00:15]} 19. Nce3 {[%emt 0:00:43]} Bg6 {[%emt 0:03:16]} 20. Qg4 {[%emt 0:07:51]} e4 {[%emt 0:19:11]} 21. Qe2 {[%emt 0:08:49]} Ne5 {[%emt 0:05:01]} 22. Nc2 {[%emt 0:09:30]} Bh6 {[%emt 0:10:47]} 23. Nd4 {[%emt 0:05:35]} Qh4 {[%emt 0:03:56]} 24. f3 {[%emt 0:45:46]} exf3 {[%emt 0:16:37]} 25. gxf3 {[%emt 0:02:32]} Rbe8 {[%emt 0:00:39]} 26. Qf2 {[%emt 0:00:31]} Qh5 {[%emt 0:03:23]} 27. Ra2 {[%emt 0:01:21]} Nxc4 {[%emt 0:00:32]} 28. bxc4 {[%emt 0:00:02]} Bd3 {[%emt 0:00:11]} 29. Re1 {[%emt 0:00:54]} Rxe1+ {[%emt 0:00:07]} 30. Qxe1 {[%emt 0:00:03]} Bxc4 {[%emt 0:00:07]} 31. Rxa5 {[%emt 0:00:42]} Bxd5 {[%emt 0:00:06]} 32. c4 {[%emt 0:00:16]} Qg6+ {[%emt 0:00:05]} 33. Kh1 {[%emt 0:00:10]} Bxc4 {[%emt 0:00:31]} 34. Qe7 {[%emt 0:00:46]} Re8 {[%emt 0:00:31]} 35. Qh4 {[%emt 0:00:39]} Bf1 {[%emt 0:00:25]} 36. Qf2 {[%emt 0:00:27]} Bh3 {[%emt 0:00:20]} 37. Ra1 {[%emt 0:01:08]} Be3 {[%emt 0:00:13]} 0-1

[Event "Germany Countries-chT Youth 2022"]
[Site "Wiesbaden"]
[Date "2022.10.01"]
[Round "1"]
[White "Nizamova, Rita"]
[Black "Goepfert, Gregor"]
[Result "1-0"]
[ECO "C26"]
[WhiteElo "1813"]
[BlackElo "1480"]
[Annotator "NA RC COMBH"]
[PlyCount "73"]
[EventDate "2022.09.28"]
[EventType "team-tourn"]
[EventRounds "7"]
[EventCountry "GER"]
[SourceTitle "playchess.com"]
[Source "ChessBase"]
[SourceQuality "1"]
[TimeControl "40/5400+30:1800+30"]

1. e4 {[%emt 9:05:54]} e5 {[%emt 0:00:28]} 2. Nc3 {[%emt 0:00:04]} Nc6 {[%emt 0:00:55]} 3. g3 {[%emt 0:00:06]} Nf6 {[%emt 0:02:27]} 4. Bg2 {[%emt 0:00:11]} Bc5 {[%emt 0:01:36]} 5. Nf3 {[%emt 0:00:25]} d6 {[%emt 0:00:45]} 6. O-O {[%emt 0:00:19]} a6 {[%emt 0:00:38]} 7. d3 {[%emt 0:01:28]} O-O {[%emt 0:02:27]} 8. h3 {[%emt 0:01:34]} h6 {[%emt 0:01:56]} 9. Kh2 {[%emt 0:01:41]} Be6 {[%emt 0:04:48]} 10. Nh4 {[%emt 0:03:14]} d5 {[%emt 0:02:13]} 11. exd5 {[%emt 0:09:01]} Nxd5 {[%emt 0:01:50]} 12. Nxd5 {[%emt 0:10:21]} Bxd5 {[%emt 0:00:14]} 13. Bxd5 {[%emt 0:00:05]} Qxd5 {[%emt 0:00:28]} 14. Qg4 {[%emt 0:00:59]} Kh7 {[%emt 0:05:17]} 15. Nf5 {[%emt 0:02:53]} Rg8 {[%emt 0:00:49]} 16. f4 {[%emt 0:11:22]} Rae8 {[%emt 0:14:59]} 17. Qh5 {[%emt 0:15:21]} e4 {[%emt 0:04:21]} 18. Nxg7 {[%emt 0:02:12]} Qxh5 {[%emt 0:03:25]} 19. Nxh5 {[%emt 0:00:02]} Kg6 {[%emt 0:00:39]} 20. g4 {[%emt 0:00:15]} f5 {[%emt 0:02:39]} 21. dxe4 {[%emt 0:01:51]} fxg4 {[%emt 0:02:07]} 22. hxg4 {[%emt 0:00:18]} Rxe4 {[%emt 0:01:00]} 23. Ng3 {[%emt 0:00:22]} Re7 {[%emt 0:03:29]} 24. Bd2 {[%emt 0:07:59]} Nd4 {[%emt 0:02:04]} 25. c3 {[%emt 0:01:45]} Ne2 {[%emt 0:00:51]} 26. Rae1 {[%emt 0:04:34]} Rge8 {[%emt 0:00:22]} 27. Nxe2 {[%emt 0:05:37]} Rxe2+ {[%emt 0:00:19]} 28. Kh3 {[%emt 0:00:04]} Rxe1 {[%emt 0:03:08]} 29. f5+ {[%emt 0:01:25]} Kf6 {[%emt 0:00:31]} 30. Rxe1 {[%emt 0:00:14]} Rxe1 31. Bxe1 Be3 {[%emt 0:01:46]} 32. Kh4 {[%emt 0:01:30]} b5 {[%emt 0:00:57]} 33. b3 {[%emt 0:02:53]} c6 {[%emt 0:01:46]} 34. Kg3 {[%emt 0:01:11]} Ke5 {[%emt 0:00:27]} 35. Kf3 {[%emt 0:00:07]} Bg5 {[%emt 0:00:15]} 36. Bg3+ {[%emt 0:00:10]} Kf6 {[%emt 0:03:31]} 37. Bf4 {[%emt 0:00:10]} 1-0

[Event "Germany Countries-chT Youth 2022"]
[Site "Wiesbaden"]
[Date "2022.10.01"]
[Round "1"]
[White "Buchinger, Alexis"]
[Black "Woerz, Ann-Sophie"]
[Result "1/2-1/2"]
[ECO "B07"]
[WhiteElo "1802"]
[BlackElo "1607"]
[Annotator "NA RC COMBH"]
[PlyCount "70"]
[EventDate "2022.09.28"]
[EventType "team-tourn"]
[EventRounds "7"]
[EventCountry "GER"]
[SourceTitle "playchess.com"]
[Source "ChessBase"]
[SourceQuality "1"]
[TimeControl "40/5400+30:1800+30"]

1. e4 {[%emt 0:00:19]} d6 {[%emt 0:00:04]} 2. d4 {[%emt 0:00:07]} Nf6 {[%emt 0:00:05]} 3. Nc3 {[%emt 0:00:04]} e5 {[%emt 0:00:06]} 4. dxe5 {[%emt 0:00:55]} dxe5 {[%emt 0:00:07]} 5. Qxd8+ {[%emt 0:00:06]} Kxd8 {[%emt 0:00:03]} 6. Bg5 {[%emt 0:01:25]} Nbd7 {[%emt 0:00:09]} 7. Bc4 {[%emt 0:00:55]} Ke8 {[%emt 0:00:04]} 8. O-O-O {[%emt 0:00:50]} a6 {[%emt 0:04:10]} 9. Nf3 {[%emt 0:01:29]} Bd6 {[%emt 0:03:27]} 10. Bh4 {[%emt 0:02:56]} Nc5 {[%emt 0:03:43]} 11. Rhe1 {[%emt 0:04:26]} b5 {[%emt 0:01:33]} 12. Bxf6 {[%emt 0:06:57]} gxf6 {[%emt 0:04:00]} 13. Bd5 {[%emt 0:00:13]} Rb8 {[%emt 0:03:11]} 14. Bc6+ {[%emt 0:02:35]} Kf8 {[%emt 0:04:30]} 15. Nd5 {[%emt 0:06:48]} Kg7 {[%emt 0:03:09]} 16. Re3 {[%emt 0:01:11]} Ne6 {[%emt 0:01:43]} 17. Nc3 {[%emt 0:07:57]} h5 {[%emt 0:02:07]} 18. g3 {[%emt 0:03:40]} Bc5 {[%emt 0:02:33]} 19. Re2 {[%emt 0:04:23]} Nd4 {[%emt 0:01:54]} 20. Nxd4 {[%emt 0:00:08]} Bxd4 {[%emt 0:00:03]} 21. f3 {[%emt 0:01:58]} Rb6 {[%emt 0:03:48]} 22. Bd5 {[%emt 0:00:19]} a5 {[%emt 0:02:08]} 23. a3 {[%emt 0:01:16]} c6 {[%emt 0:01:12]} 24. Bb3 {[%emt 0:00:23]} Rb8 {[%emt 0:03:39]} 25. Kb1 {[%emt 0:03:03]} a4 {[%emt 0:08:37]} 26. Ba2 {[%emt 0:00:10]} b4 {[%emt 0:02:13]} 27. Nxa4 {[%emt 0:00:49]} bxa3 {[%emt 0:02:35]} 28. Bb3 {[%emt 0:00:28]} axb2 {[%emt 0:01:13]} 29. Nxb2 {[%emt 0:00:22]} Be6 {[%emt 0:00:49]} 30. Rd3 {[%emt 0:03:04]} c5 {[%emt 0:00:44]} 31. c4 {[%emt 0:00:39]} Rb4 {[%emt 0:00:52]} 32. Rc2 {[%emt 0:01:47]} Rhb8 {[%emt 0:01:49]} 33. Ka2 {[%emt 0:01:37]} Ra8+ {[%emt 0:02:26]} 34. Kb1 {[%emt 0:00:29]} Rab8 {[%emt 0:00:36]} 35. Ka2 {[%emt 0:00:21]} Ra8+ {[%emt 0:00:06]} 1/2-1/2

[Event "Germany Countries-chT Youth 2022"]
[Site "Wiesbaden"]
[Date "2022.10.01"]
[Round "1"]
[White "Voigt, Anastasia"]
[Black "Rudolph, Eva"]
[Result "1-0"]
[ECO "B41"]
[WhiteElo "1772"]
[BlackElo "1911"]
[Annotator "TA"]
[PlyCount "85"]
[EventDate "2022.09.28"]
[EventType "team-tourn"]
[EventRounds "7"]
[EventCountry "GER"]
[SourceTitle "playchess.com"]
[Source "ChessBase"]
[SourceQuality "1"]
[TimeControl "40/5400+30:1800+30"]

{[%evp 15,85,43,48,52,56,50,56,35,45,35,55,38,54,29,26,13,25,21,30,4,22,24,69,46,45,37,70,31,118,110,122,125,120,109,122,125,122,117,140,111,117,100,116,95,95,95,95,95,95,95,95,104,104,102,95,95,95,95,110,110,116,114,118,118,118,110,110,28,110,110,110,0]} 1. e4 {[%emt 0:00:01]} c5 {[%emt 0:00:05]} 2. Nf3 {[%emt 0:00:04]} e6 {[%emt 0:00:07]} 3. d4 {[%emt 0:00:08]} cxd4 {[%emt 0:00:05]} 4. Nxd4 {[%emt 0:00:04]} a6 {[%emt 0:00:07]} 5. c4 {[%emt 0:00:06]} Nf6 {[%emt 0:03:18]} 6. Nc3 {[%emt 0:00:07]} Qc7 {[%emt 0:00:42]} 7. a3 {[%emt 0:00:07]} Nc6 {[%emt 0:04:26]} 8. Be3 {[%emt 0:02:04]} Be7 {[%emt 0:06:10]} 9. Be2 {[%emt 0:01:44] B41: Sicilian: Kan Variation: 5 c4.} O-O {[%emt 0:04:36] 9...d6 is vanishing.} 10. O-O {[%emt 0:01:06]} Rd8 {[%emt 0:07:33] [#]} 11. Qb3 $146 {[%emt 0:04:52] White is slightly better.} ({Predecessor:} 11. Rc1 b6 12. f3 Bb7 13. Nd5 exd5 14. cxd5 Bc5 15. dxc6 dxc6 16. b4 Bd6 17. h3 {0-1 (43) Logozar,E (1884)-Cherniaiev,T (2209) Chess.com INT 2022}) 11... d6 {[%emt 0:07:40]} 12. Rfd1 {[%emt 0:01:45]} Nd7 {[%emt 0:02:07]} 13. Rac1 {[%emt 0:03:25]} b6 {[%emt 0:12:12]} 14. Qa2 {[%emt 0:07:42][%cal Oc3d5] Threatens to win with Nd5!} Nxd4 {[%emt 0:06:13]} 15. Bxd4 {[%emt 0:00:00]} Bb7 {[%emt 0:00:30]} 16. f3 {[%emt 0:00:00]} Rac8 {[%emt 0:00:30]} 17. Be3 {[%emt 0:08:34]} Bf6 {[%emt 0:06:44]} (17... Bg5 $5 {[%cal Rg5e3]} 18. f4 Bf6 $11) 18. b4 {[%emt 0:02:27]} Ne5 {[%cal Re5c4]} 19. Na4 {[%emt 0:10:08]} (19. Qd2 $5 {[%cal Rc3a4]}) 19... Nd7 {[%emt 0:01:59]} 20. Qd2 {[%emt 0:00:00]} Be7 21. Qd4 {[%emt 0:07:29][%cal Ra4b6]} e5 {[%emt 0:00:25]} ({Black should try} 21... Bc6 $14 22. Nc3 (22. Nxb6 Bf6 $14) 22... Nc5) 22. Qd2 $16 {[%emt 0:01:25]} Bc6 {[%emt 0:01:41]} 23. Nc3 {[%emt 0:00:00]} Qb8 {[%emt 0:16:36]} 24. Nd5 {[%emt 0:00:00]} Bxd5 {[%emt 0:07:56]} 25. cxd5 {[%emt 0:01:59]} Qb7 {[%emt 0:04:01]} 26. a4 {[%emt 0:01:23]} Rf8 {[%emt 0:02:28]} 27. Rxc8 {[%emt 0:00:00]} Rxc8 {[%emt 0:00:00]} 28. Rc1 {[%emt 0:01:24]} Kf8 {[%emt 0:00:00]} 29. Rc2 {[%emt 0:00:00]} Bd8 {[%emt 0:00:00]} 30. Qc1 {[%emt 0:01:09]} Rxc2 {[%emt 0:00:00]} 31. Qxc2 {[%emt 0:00:04] Qc6 is the strong threat.} a5 {[%emt 0:01:05]} 32. Qc6 {[%emt 0:01:09]} Qc7 {[%emt 0:00:44]} 33. Bb5 {[%emt 0:06:03]} Ke7 {[%emt 0:00:49]} 34. Qxc7 {[%emt 0:06:04] White has more active pieces.} (34. Bg5+ {is interesting.} f6 35. Bd2 Qxc6 36. Bxc6 h5 37. Kf1) 34... Bxc7 {[%emt 0:00:03]} 35. Bxd7 {[%emt 0:00:08]} Kxd7 {[%emt 0:00:12][%mdl 4096] Endgame KB-KB} 36. b5 {[%emt 0:00:12]} Ke7 {[%emt 0:02:33]} 37. Kf2 {[%emt 0:00:09]} f6 {[%emt 0:01:54]} 38. Kg3 {[%emt 0:00:17]} Kf7 {[%emt 0:00:39]} 39. Kg4 {[%emt 0:01:44]} Bd8 {[%emt 0:01:16]} 40. h4 {[%emt 0:00:37]} g6 {[%emt 0:01:22]} 41. f4 {[%emt 0:32:26]} (41. h5 $16) 41... Kg7 {[%emt 0:30:30]} (41... h5+ $11 42. Kf3 f5) 42. Kf3 Kf7 {[%emt 0:02:26]} 43. Kg4 {[%emt 0:01:00][%mdl 32768] Weighted Error Value: White=0.12 (very precise) /Black=0.16 (very precise) . Sensor Board Error (Ke4/e5)?} (43. h5 $16) 1-0

[Event "Germany Countries-chT Youth 2022"]
[Site "Wiesbaden"]
[Date "2022.10.01"]
[Round "1"]
[White "Wylie, Leonard"]
[Black "Buchholz, Maja"]
[Result "0-1"]
[ECO "C06"]
[WhiteElo "1721"]
[BlackElo "1765"]
[Annotator "NA RC COMBH"]
[PlyCount "104"]
[EventDate "2022.09.28"]
[EventType "team-tourn"]
[EventRounds "7"]
[EventCountry "GER"]
[SourceTitle "playchess.com"]
[Source "ChessBase"]
[SourceQuality "1"]
[TimeControl "40/5400+30:1800+30"]

1. e4 {[%emt 0:00:03]} e6 {[%emt 0:00:05]} 2. d4 {[%emt 0:00:09]} d5 {[%emt 0:00:06]} 3. Nd2 {[%emt 0:00:08]} Nf6 {[%emt 0:00:13]} 4. e5 {[%emt 0:00:12]} Nfd7 {[%emt 0:00:06]} 5. f4 {[%emt 0:00:05]} c5 {[%emt 0:00:06]} 6. c3 {[%emt 0:00:14]} b6 {[%emt 0:00:11]} 7. Bd3 {[%emt 0:01:04]} Ba6 {[%emt 0:00:11]} 8. Ndf3 {[%emt 0:00:42]} Bxd3 {[%emt 0:00:37]} 9. Qxd3 {[%emt 0:00:08]} Nc6 {[%emt 0:00:16]} 10. Ne2 {[%emt 0:00:40]} Be7 {[%emt 0:00:34]} 11. O-O {[%emt 0:00:29]} Qc7 {[%emt 0:00:41]} 12. f5 {[%emt 0:01:30]} c4 {[%emt 0:00:41]} 13. Qc2 {[%emt 0:00:12]} O-O-O {[%emt 0:00:28]} 14. fxe6 {[%emt 0:00:29]} fxe6 {[%emt 0:00:10]} 15. Bg5 {[%emt 0:00:12]} h6 {[%emt 0:01:27]} 16. Bxe7 {[%emt 0:02:00]} Nxe7 {[%emt 0:00:07]} 17. Nf4 {[%emt 0:00:33]} Nf8 {[%emt 0:01:33]} 18. Nh4 {[%emt 0:05:14]} Rg8 {[%emt 0:31:25]} 19. Nhg6 {[%emt 0:00:28]} Qd7 {[%emt 0:00:48]} 20. Rf3 {[%emt 0:02:11]} Nexg6 {[%emt 0:28:07]} 21. Nxg6 {[%emt 0:00:43]} Qe8 {[%emt 0:00:39]} 22. Nxf8 {[%emt 0:01:31]} Rxf8 {[%emt 0:00:05]} 23. Rxf8 {[%emt 0:00:11]} Qxf8 {[%emt 0:00:05]} 24. Qg6 {[%emt 0:00:19]} Qg8 {[%emt 0:00:15]} 25. Rf1 {[%emt 0:00:17]} Rd7 {[%emt 0:00:08]} 26. Rf6 {[%emt 0:02:04]} Re7 {[%emt 0:00:24]} 27. Qg4 {[%emt 0:00:37]} Kd7 {[%emt 0:01:11]} 28. Rxh6 {[%emt 0:00:58]} Qf7 {[%emt 0:01:11]} 29. Rh3 {[%emt 0:00:49]} b5 {[%emt 0:02:19]} 30. Rf3 {[%emt 0:01:00]} Qe8 {[%emt 0:00:07]} 31. Qf4 {[%emt 0:00:23]} Qg6 {[%emt 0:00:26]} 32. Qc1 {[%emt 0:00:31]} Qe4 {[%emt 0:02:05]} 33. Qf1 {[%emt 0:01:24]} a5 {[%emt 0:01:22]} 34. b3 {[%emt 0:02:08]} Qc2 {[%emt 0:00:26]} 35. bxc4 {[%emt 0:00:44]} dxc4 {[%emt 0:01:33]} 36. Qa1 {[%emt 0:00:39]} b4 {[%emt 0:03:48]} 37. cxb4 {[%emt 0:00:26]} axb4 {[%emt 0:00:06]} 38. Rf2 {[%emt 0:00:25]} Qa4 {[%emt 0:01:46]} 39. Qc1 {[%emt 0:01:04]} c3 {[%emt 0:00:53]} 40. Qc2 {[%emt 0:00:29]} Qxc2 {[%emt 0:03:58]} 41. Rxc2 {[%emt 0:30:14]} Kc6 {[%emt 0:30:14]} 42. Kf2 {[%emt 0:00:10]} Kd5 {[%emt 0:00:05]} 43. Ke3 {[%emt 0:00:07]} Kc4 {[%emt 0:00:06]} 44. h4 {[%emt 0:00:17]} Rd7 {[%emt 0:00:17]} 45. d5 {[%emt 0:00:50]} exd5 {[%emt 0:01:19]} 46. Rf2 {[%emt 0:00:33]} d4+ {[%emt 0:00:47]} 47. Ke2 {[%emt 0:00:15]} Ra7 {[%emt 0:03:53]} 48. Kd1 {[%emt 0:00:33]} Kd5 {[%emt 0:00:56]} 49. Re2 {[%emt 0:00:24]} Re7 {[%emt 0:00:26]} 50. g4 {[%emt 0:00:09]} Rxe5 {[%emt 0:00:17]} 51. Rxe5+ {[%emt 0:00:37]} Kxe5 {[%emt 0:00:04]} 52. Kc2 {[%emt 0:00:11]} Kf4 {[%emt 0:00:22]} 0-1

[Event "Germany Countries-chT Youth 2022"]
[Site "Wiesbaden"]
[Date "2022.10.01"]
[Round "1"]
[White "Prinzen, Siri Marleen"]
[Black "Glowiak, Alexandra"]
[Result "1-0"]
[ECO "D02"]
[WhiteElo "1719"]
[BlackElo "1602"]
[Annotator "NA RC COMBH"]
[PlyCount "67"]
[EventDate "2022.09.28"]
[EventType "team-tourn"]
[EventRounds "7"]
[EventCountry "GER"]
[SourceTitle "playchess.com"]
[Source "ChessBase"]
[SourceQuality "1"]
[TimeControl "40/5400+30:1800+30"]

1. d4 d5 2. Bf4 e6 3. e3 Nf6 4. Nd2 Be7 5. Ngf3 Nbd7 6. Bd3 c5 7. c3 O-O 8. Ne5 Qb6 9. Qb1 h6 10. h3 Bd6 11. g4 Bxe5 12. dxe5 Ne8 13. h4 f6 14. exf6 e5 15. fxg7 Kxg7 16. Bg3 e4 17. Be2 Qg6 18. Bf4 Nd6 19. Qc2 c4 20. O-O-O Nf7 21. Rdg1 Kh7 22. h5 Qg7 23. f3 Nb6 24. fxe4 Kh8 25. Nf3 Rg8 26. Nh4 Qf6 27. Ng6+ Kg7 28. Rf1 Qe6 29. exd5 Nxd5 30. Bxc4 b5 31. Bxd5 Qxd5 32. Ne7 Qe6 33. Nxg8 Kxg8 34. Qg2 1-0